bitfinex/quotes_BTCUSD_20250224
["timestamp","ask_amount","ask_price","bid_price","bid_amount"]
[1740374088441,0.156849,95634.0,95630.0,0.00470807]
[1740374088653,0.156849,95633.0,95630.0,0.00470807]
[1740374088876,0.156852,95631.0,95630.0,0.00470807]
[1740374089359,0.157852,95631.0,95630.0,0.0016994]
[1740374090522,0.157852,95631.0,95630.0,0.0036994]
[1740374090979,0.157852,95631.0,95630.0,0.0016994]
[1740374091206,0.156852,95631.0,95630.0,0.0016994]
[1740374091415,0.156852,95631.0,95630.0,0.0026994]
[1740374091625,0.365985,95633.0,95630.0,0.0036994]
[1740374091843,0.156851,95633.0,95630.0,0.0026994]
[1740374092056,0.0008493,95635.0,95630.0,0.0036994]
[1740374092479,0.0008493,95635.0,95631.0,0.00300913]
[1740374092690,0.209131,95634.0,95631.0,0.00300913]
[1740374092902,0.156851,95632.0,95631.0,0.00300913]
[1740374093339,0.156852,95631.0,95630.0,0.0016994]
[1740374093989,0.0008493,95635.0,95631.0,0.0462]
[1740374094221,0.1576953,95635.0,95633.0,0.0817]
[1740374094444,0.0008493,95635.0,95634.0,0.10264569]
[1740374094665,0.1576953,95635.0,95634.0,0.10264569]
[1740374095379,0.0008493,95635.0,95634.0,0.10264569]
[1740374096040,0.1576953,95635.0,95634.0,0.10264569]
[1740374096263,0.0008493,95635.0,95634.0,0.10264569]
[1740374097566,0.0008493,95635.0,95634.0,0.25949269]
[1740374097791,0.0008493,95635.0,95634.0,0.10264569]
[1740374098894,0.0008493,95635.0,95634.0,0.25949269]
[1740374100446,0.156841,95639.0,95634.0,0.10264569]
[1740374100662,0.156838,95640.0,95634.0,0.10264569]
[1740374100856,0.219691,95641.0,95634.0,0.10264569]
[1740374101078,0.156838,95640.0,95634.0,0.10264569]
[1740374101368,0.010576,95641.0,95636.0,0.156844]
[1740374101581,0.167413,95641.0,95634.0,0.31177469]
[1740374101797,0.209106,95645.0,95634.0,0.10264569]
[1740374102011,0.156835,95642.0,95635.0,0.156845]
[1740374102231,0.156834,95643.0,95637.0,0.156843]
[1740374102448,0.01082225,95645.0,95635.0,0.10264569]
[1740374102665,0.156833,95643.0,95636.0,0.156844]
[1740374103096,0.156832,95644.0,95638.0,0.156841]
[1740374103334,0.003,95646.0,95639.0,0.10264569]
[1740374103591,0.003,95646.0,95645.0,0.156829]
[1740374103827,0.003,95646.0,95645.0,0.25947469]
[1740374104507,0.003,95646.0,95645.0,0.10264569]
[1740374104968,0.003,95646.0,95645.0,0.3453725]
[1740374105219,0.003,95646.0,95645.0,0.3513725]
[1740374105662,0.003,95646.0,95645.0,0.3453725]
[1740374106103,0.003,95646.0,95645.0,0.3513725]
[1740374106987,0.003,95646.0,95645.0,0.2015435]
[1740374107254,0.003,95646.0,95645.0,0.3583725]
[1740374107825,0.003,95646.0,95645.0,0.3523725]
[1740374108050,0.003,95646.0,95645.0,0.3583725]
[1740374108569,0.003,95646.0,95645.0,0.2015435]
[1740374110097,0.003,95646.0,95645.0,0.3583725]
[1740374110471,0.003,95646.0,95645.0,0.2015435]
[1740374111155,0.003,95646.0,95645.0,0.3583725]
[1740374113130,0.003,95646.0,95645.0,0.36164527]
[1740374114260,0.003,95646.0,95645.0,0.34864527]
[1740374114472,0.003,95646.0,95645.0,0.35564527]
[1740374115783,0.003,95646.0,95645.0,0.36264527]
[1740374121179,0.003,95646.0,95645.0,0.37718612]
[1740374121436,0.003,95646.0,95645.0,0.42498612]
[1740374122791,0.0038498,95646.0,95645.0,0.42498612]
[1740374126899,0.0038498,95646.0,95645.0,0.42322287]
[1740374127552,0.0038498,95646.0,95645.0,0.43022287]
[1740374128191,0.0038498,95646.0,95645.0,0.43854287]
[1740374129486,0.0038498,95646.0,95645.0,0.43330612]
[1740374130878,0.0038498,95646.0,95645.0,0.41044527]
[1740374132608,0.0038498,95646.0,95645.0,0.41876527]
[1740374142891,0.0038498,95646.0,95645.0,0.26193627]
[1740374143137,0.1606778,95646.0,95645.0,0.25361627]
[1740374144080,0.0038498,95646.0,95645.0,0.41044527]
[1740374144302,0.0038498,95646.0,95645.0,0.25361627]
[1740374144771,0.0038498,95646.0,95645.0,0.41044527]
[1740374145702,0.0038498,95646.0,95645.0,0.25361627]
[1740374145946,0.0038498,95646.0,95645.0,0.41044527]
[1740374147451,0.0038498,95646.0,95645.0,0.25361627]
[1740374147716,0.0038498,95646.0,95645.0,0.41044527]
[1740374151609,0.0038498,95646.0,95645.0,0.42498612]
[1740374153555,0.0038498,95646.0,95645.0,0.43022287]
[1740374154641,0.0038498,95646.0,95645.0,0.42322287]
[1740374154866,0.0038498,95646.0,95645.0,0.43022287]
[1740374155309,0.0038498,95646.0,95645.0,0.42322287]
[1740374155705,0.0038498,95646.0,95645.0,0.43022287]
[1740374156100,0.0038498,95646.0,95645.0,0.41622287]
[1740374156671,0.0038498,95646.0,95645.0,0.42322287]
[1740374157096,0.0038498,95646.0,95645.0,0.43022287]
[1740374157297,0.0038498,95646.0,95645.0,0.42322287]
[1740374159015,0.0038498,95646.0,95645.0,0.41622287]
[1740374159417,0.0038498,95646.0,95645.0,0.43022287]
[1740374161244,0.0038498,95646.0,95645.0,0.42322287]
[1740374161661,0.0038498,95646.0,95645.0,0.43022287]
[1740374162492,0.0038498,95646.0,95645.0,0.42322287]
[1740374162695,0.0038498,95646.0,95645.0,0.41622287]
[1740374162844,0.0038498,95646.0,95645.0,0.42322287]
[1740374163672,0.0038498,95646.0,95645.0,0.41622287]
[1740374164203,0.0038498,95646.0,95645.0,0.43022287]
[1740374164651,0.0038498,95646.0,95645.0,0.74462287]
[1740374165049,0.0038498,95646.0,95645.0,0.75162287]
[1740374167095,0.0038498,95646.0,95645.0,0.74462287]
[1740374167300,0.0038498,95646.0,95645.0,0.73762287]
[1740374167501,0.0038498,95646.0,95645.0,0.75162287]
[1740374172904,0.0038498,95646.0,95645.0,0.84519296]
[1740374174804,0.0038498,95646.0,95645.0,0.75162287]
[1740374184203,0.0038498,95646.0,95645.0,0.90162287]
[1740374184204,8e-07,95646.0,95645.0,0.90162287]
[1740374184431,8e-07,95646.0,95645.0,0.93411601]
[1740374185153,0.0004,95649.0,95648.0,0.306825]
[1740374185366,0.0004,95649.0,95648.0,0.87151154]
[1740374185595,0.0004,95649.0,95648.0,0.87449873]
[1740374186775,0.0004,95649.0,95648.0,0.88149873]
[1740374187696,0.0004,95649.0,95648.0,0.89000825]
[1740374188381,0.0004,95649.0,95648.0,0.89700825]
[1740374189135,0.0004,95649.0,95648.0,0.8907874]
[1740374189349,0.0004,95649.0,95648.0,0.7407874]
[1740374189778,0.0004,95649.0,95648.0,0.75532825]
[1740374190209,0.0004,95649.0,95648.0,0.90532825]
[1740374190434,0.0004,95649.0,95648.0,0.27469257]
[1740374190639,0.0012498,95649.0,95648.0,0.31373757]
[1740374190845,0.0012498,95649.0,95648.0,0.30850082]
[1740374191509,0.0012498,95649.0,95648.0,0.30150082]
[1740374192371,0.0012498,95649.0,95648.0,0.30850082]
[1740374193575,0.0012498,95649.0,95648.0,0.15167582]
[1740374193821,0.0012498,95649.0,95648.0,0.30850082]
[1740374194270,0.0012498,95649.0,95648.0,0.15167582]
[1740374194455,0.0012498,95649.0,95648.0,0.30018082]
[1740374194756,0.0012498,95649.0,95648.0,0.14335582]
[1740374195096,0.0012498,95649.0,95648.0,0.30018082]
[1740374197462,0.0012498,95649.0,95648.0,0.31472167]
[1740374197656,0.0012498,95649.0,95648.0,0.43882167]
[1740374204896,0.0012498,95649.0,95648.0,0.58882167]
[1740374205114,8e-07,95649.0,95648.0,0.58882167]
[1740374205551,8e-07,95649.0,95648.0,0.59405763]
[1740374205762,8e-07,95649.0,95648.0,0.58705763]
[1740374206178,8e-07,95649.0,95648.0,0.90845763]
[1740374206584,8e-07,95649.0,95648.0,0.91545763]
[1740374207703,8e-07,95649.0,95648.0,0.90845763]
[1740374207910,8e-07,95649.0,95648.0,0.91545763]
[1740374208750,8e-07,95649.0,95648.0,0.92791682]
[1740374209310,8e-07,95649.0,95648.0,1.16283682]
[1740374212989,8e-07,95649.0,95648.0,1.17061926]
[1740374213387,6e-07,95650.0,95649.0,0.44336385]
[1740374213586,6e-07,95650.0,95649.0,0.57843581]
[1740374213796,6e-07,95650.0,95649.0,0.58137854]
[1740374214168,6e-07,95650.0,95649.0,0.90277854]
[1740374214353,6e-07,95650.0,95649.0,0.92302017]
[1740374215213,6e-07,95650.0,95649.0,0.9315289]
[1740374215620,6e-07,95650.0,95649.0,0.9385289]
[1740374215857,6e-07,95650.0,95649.0,0.9455289]
[1740374217264,6e-07,95650.0,95649.0,0.91310263]
[1740374217502,0.1705257,95720.0,95649.0,0.63427963]
[1740374217747,0.156747,95696.0,95690.0,0.156755]
[1740374218214,0.156747,95696.0,95691.0,0.00291311]
[1740374218694,0.1513257,95700.0,95691.0,0.00291311]
[1740374218695,0.0008,95700.0,95692.0,0.156751]
[1740374218930,0.0008,95700.0,95693.0,0.15966008]
[1740374219180,0.0008,95700.0,95693.0,0.00290908]
[1740374219410,0.156742,95699.0,95693.0,0.156751]
[1740374219642,0.0008,95700.0,95694.0,0.00290838]
[1740374219871,0.0008,95700.0,95696.0,0.156744]
[1740374220107,0.0008,95700.0,95697.0,0.00290634]
[1740374220487,0.0008,95700.0,95692.0,0.002]
[1740374220734,0.156741,95699.0,95698.0,0.00290564]
[1740374220960,0.0008,95700.0,95695.0,0.156747]
[1740374221183,0.15754,95700.0,95698.0,0.00290558]
[1740374221416,0.156741,95699.0,95697.0,0.003]
[1740374221644,0.0008,95700.0,95697.0,0.003]
[1740374221879,0.156742,95699.0,95698.0,0.00290558]
[1740374222105,0.0008,95700.0,95695.0,0.002]
[1740374222367,0.156741,95699.0,95698.0,0.00290507]
[1740374222577,0.0008,95700.0,95681.0,0.00832]
[1740374222809,0.3080657,95700.0,95698.0,0.00290507]
[1740374223042,0.156741,95699.0,95693.0,0.15675]
[1740374223270,0.156743,95698.0,95695.0,0.003]
[1740374223521,0.0008,95700.0,95695.0,0.003]
[1740374223750,0.156741,95699.0,95696.0,0.00268291]
[1740374223980,0.156743,95698.0,95692.0,0.156752]
[1740374224209,0.156743,95698.0,95697.0,0.00268225]
[1740374224426,0.0008,95700.0,95669.0,0.01585861]
[1740374224650,0.156743,95698.0,95697.0,0.00268225]
[1740374224872,0.156743,95698.0,95695.0,0.002]
[1740374225096,0.156743,95698.0,95697.0,0.00268225]
[1740374225317,0.156741,95699.0,95696.0,0.00568291]
[1740374225561,0.156743,95698.0,95697.0,0.00268225]
[1740374225999,0.156743,95698.0,95697.0,0.00468225]
[1740374226308,0.0008,95700.0,95697.0,0.00468225]
[1740374226500,0.01045238,95701.0,95697.0,0.00568225]
[1740374226743,0.156739,95700.0,95697.0,0.003]
[1740374226998,0.2098993,95703.0,95698.0,0.0026816]
[1740374227220,0.01144135,95703.0,95698.0,0.0026816]
[1740374227709,0.01144135,95703.0,95699.0,0.208986]
[1740374227934,0.01144135,95703.0,95701.0,0.156737]
[1740374228187,0.01144135,95703.0,95697.0,0.10464569]
[1740374228188,0.01144135,95703.0,95700.0,0.00290366]
[1740374228438,0.01144135,95703.0,95699.0,0.208988]
[1740374228683,0.01144135,95703.0,95701.0,0.00290296]
[1740374228914,0.0009193,95703.0,95702.0,0.33718169]
[1740374229126,0.0009193,95703.0,95702.0,0.34008394]
[1740374229350,0.0009193,95703.0,95702.0,0.26228394]
[1740374230482,0.0009193,95703.0,95702.0,0.31098394]
[1740374230910,0.0009193,95703.0,95702.0,0.31698394]
[1740374231373,0.0009193,95703.0,95702.0,0.32552479]
[1740374231605,0.0009193,95703.0,95702.0,0.33052479]
[1740374231886,0.0009193,95703.0,95702.0,0.32552479]
[1740374232129,0.0009193,95703.0,95702.0,0.26928394]
[1740374232631,0.0009193,95703.0,95702.0,0.35495458]
[1740374233074,0.0009193,95703.0,95702.0,0.35649543]
[1740374233320,0.0009193,95703.0,95702.0,0.36349543]
[1740374233547,0.0009193,95703.0,95702.0,0.37049543]
[1740374233747,0.0009193,95703.0,95702.0,0.37877543]
[1740374234098,0.0009193,95703.0,95702.0,0.37177543]
[1740374234339,0.0009193,95703.0,95702.0,0.37877543]
[1740374235265,0.0009193,95703.0,95702.0,0.37177543]
[1740374235504,0.0009193,95703.0,95702.0,0.37877543]
[1740374235757,0.0009193,95703.0,95702.0,0.37177543]
[1740374235980,0.0009193,95703.0,95702.0,0.37877543]
[1740374236691,0.0009193,95703.0,95702.0,0.20049858]
[1740374236931,0.0009193,95703.0,95702.0,0.28083458]
[1740374237132,0.0009193,95703.0,95702.0,0.28783458]
[1740374237400,0.0009193,95703.0,95702.0,0.28083458]
[1740374237890,0.0009193,95703.0,95702.0,0.35475458]
[1740374238851,0.0009193,95703.0,95702.0,0.19801858]
[1740374239336,0.0009193,95703.0,95702.0,0.35475458]
[1740374239843,0.0009193,95703.0,95702.0,0.19801858]
[1740374241280,0.0009193,95703.0,95702.0,0.37054923]
[1740374241522,0.0009193,95703.0,95702.0,0.41779543]
[1740374242084,0.0009193,95703.0,95702.0,0.41157458]
[1740374243415,0.0009193,95703.0,95702.0,0.42611543]
[1740374244593,0.0009193,95703.0,95702.0,0.43387532]
[1740374245074,0.0009193,95703.0,95702.0,0.43910828]
[1740374253003,0.0009193,95703.0,95702.0,0.41624743]
[1740374253269,0.0009193,95703.0,95702.0,0.29254743]
[1740374254015,0.01139347,95703.0,95702.0,0.29254743]
[1740374254273,0.01139347,95703.0,95702.0,0.28731447]
[1740374254274,0.0009193,95703.0,95702.0,0.28731447]
[1740374254723,0.0009193,95703.0,95702.0,0.28031447]
[1740374255231,0.0009193,95703.0,95702.0,0.27955458]
[1740374255916,0.0009193,95703.0,95702.0,0.27255458]
[1740374256170,0.0009193,95703.0,95702.0,0.27955458]
[1740374256666,0.0009193,95703.0,95702.0,0.27255458]
[1740374256947,0.0009193,95703.0,95702.0,0.35745458]
[1740374257443,0.0009193,95703.0,95702.0,0.41473458]
[1740374257657,0.0009193,95703.0,95702.0,0.42927543]
[1740374258323,0.0009193,95703.0,95702.0,0.45475367]
[1740374258545,0.0009193,95703.0,95702.0,0.46536272]
[1740374266831,0.0009193,95703.0,95702.0,0.44647367]
[1740374267107,0.0009193,95703.0,95702.0,0.46525934]
[1740374267859,0.0009193,95703.0,95702.0,0.45475367]
[1740374268648,0.0009193,95703.0,95702.0,0.46545601]
[1740374269892,0.3594247,95740.0,95703.0,0.01454085]
[1740374270139,0.1505257,95740.0,95726.0,0.156696]
[1740374270368,0.208903,95738.0,95727.0,0.156695]
[1740374270588,0.208903,95738.0,95727.0,0.1592152]
[1740374270792,0.156687,95732.0,95727.0,0.0025202]
[1740374271074,0.156687,95732.0,95727.0,0.1592152]
[1740374271554,0.156685,95734.0,95728.0,0.156693]
[1740374271806,0.156688,95732.0,95727.0,0.0025202]
[1740374272053,0.156691,95730.0,95728.0,0.00251955]
[1740374272342,0.15669,95731.0,95728.0,0.00251955]
[1740374272589,0.156691,95730.0,95727.0,0.001]
[1740374272846,0.20891,95735.0,95727.0,0.001]
[1740374273086,0.01051601,95738.0,95711.0,0.208961]
[1740374273333,0.156692,95729.0,95728.0,0.00251955]
[1740374273591,0.208913,95734.0,95719.0,0.156708]
[1740374273827,0.156692,95729.0,95728.0,0.00251955]
[1740374274030,0.20892,95731.0,95720.0,0.10264569]
[1740374274312,0.156692,95729.0,95728.0,0.00351955]
[1740374274563,0.156692,95729.0,95728.0,0.002]
[1740374274785,0.156692,95729.0,95728.0,0.001]
[1740374275021,0.156703,95723.0,95720.0,0.10264569]
[1740374275234,0.156698,95726.0,95720.0,0.26035269]
[1740374275455,0.1505257,95730.0,95720.0,0.10264569]
[1740374275673,0.365615,95729.0,95728.0,0.001]
[1740374276113,0.1567,95724.0,95720.0,0.10264569]
[1740374276321,0.156695,95727.0,95721.0,0.156704]
[1740374276540,0.156701,95724.0,95722.0,0.10264569]
[1740374276760,0.156702,95723.0,95722.0,0.10264569]
[1740374277192,0.1567,95725.0,95722.0,0.10264569]
[1740374277410,0.156702,95723.0,95722.0,0.10264569]
[1740374277632,0.156705,95721.0,95720.0,0.007]
[1740374278083,0.209727,95727.0,95705.0,0.00523296]
[1740374278298,0.156729,95706.0,95705.0,0.00523296]
[1740374278971,0.20895,95717.0,95706.0,0.00327069]
[1740374279183,0.156728,95707.0,95706.0,0.01106785]
[1740374279405,0.156726,95709.0,95706.0,0.01106785]
[1740374279632,0.20895,95717.0,95706.0,0.01106785]
[1740374280120,0.156728,95707.0,95706.0,0.01106785]
[1740374280777,0.156728,95707.0,95706.0,0.01031668]
[1740374280990,0.156729,95706.0,95705.0,0.007]
[1740374281446,0.156729,95706.0,95702.0,0.049]
[1740374281664,0.156729,95706.0,95705.0,0.00252017]
[1740374281881,0.156729,95706.0,95703.0,0.10264569]
[1740374282107,0.156729,95706.0,95705.0,0.00252017]
[1740374282340,0.156731,95706.0,95705.0,0.014]
[1740374282555,0.156731,95706.0,95705.0,0.01652017]
[1740374282773,0.156731,95706.0,95705.0,0.00952017]
[1740374283206,0.156731,95706.0,95705.0,0.007]
[1740374283436,0.1674585,95706.0,95705.0,0.007]
[1740374284119,0.0107275,95706.0,95703.0,0.007]
[1740374284337,0.156733,95704.0,95703.0,0.007]
[1740374284980,0.156743,95698.0,95697.0,0.0016986]
[1740374286298,0.156743,95698.0,95697.0,0.0036986]
[1740374286931,0.156743,95698.0,95697.0,0.0056986]
[1740374297864,0.10315077,95705.0,95697.0,0.0056986]
[1740374298315,0.156741,95699.0,95697.0,0.0056986]
[1740374298531,0.156741,95699.0,95698.0,0.00310119]
[1740374299401,0.208984,95701.0,95697.0,0.0016986]
[1740374299635,0.156743,95698.0,95697.0,0.0016986]
[1740374300980,0.156743,95698.0,95697.0,0.0036986]
[1740374301402,0.156743,95698.0,95697.0,0.0046986]
[1740374301861,0.10315077,95705.0,95697.0,0.0036986]
[1740374301862,0.156737,95702.0,95697.0,0.0036986]
[1740374302087,0.156737,95702.0,95698.0,0.0493]
[1740374302470,0.10315077,95705.0,95699.0,0.08170016]
[1740374302690,0.10315077,95705.0,95700.0,0.156739]
[1740374302901,0.10315077,95705.0,95701.0,0.10264569]
[1740374303108,0.10315077,95705.0,95701.0,0.10574416]
[1740374303928,0.156736,95702.0,95701.0,0.00309847]
[1740374304358,0.156736,95702.0,95697.0,0.0026986]
[1740374304359,0.156743,95698.0,95697.0,0.0036986]
[1740374304535,0.156743,95698.0,95697.0,0.0026986]
[1740374304748,0.15674,95700.0,95697.0,0.0026986]
[1740374304962,0.208983,95702.0,95697.0,0.0016986]
[1740374305307,0.156739,95701.0,95698.0,0.00310101]
[1740374305512,0.10315077,95705.0,95698.0,0.00310101]
[1740374305724,0.156737,95702.0,95698.0,0.00310101]
[1740374306252,0.208979,95703.0,95698.0,0.00310101]
[1740374306253,0.156738,95701.0,95698.0,0.00310101]
[1740374306824,0.10315077,95705.0,95698.0,0.00410101]
[1740374306825,0.156741,95700.0,95698.0,0.00410101]
[1740374307235,0.156741,95700.0,95698.0,0.001]
[1740374307447,0.156737,95702.0,95699.0,0.08329905]
[1740374307651,0.21973516,95706.0,95699.0,0.08329905]
[1740374308052,0.01076116,95706.0,95699.0,0.08329905]
[1740374308257,0.156739,95700.0,95699.0,0.0802]
[1740374308486,0.156738,95701.0,95699.0,0.0802]
[1740374308894,0.156737,95702.0,95699.0,0.0802]
[1740374309096,0.156738,95701.0,95699.0,0.0802]
[1740374309698,0.156739,95700.0,95699.0,0.0802]
[1740374310124,0.208978,95704.0,95699.0,0.0812]
[1740374310330,0.156737,95702.0,95699.0,0.0812]
[1740374310564,0.156738,95701.0,95699.0,0.0822]
[1740374311003,0.156738,95701.0,95700.0,0.01952885]
[1740374313355,0.156734,95704.0,95700.0,0.02052885]
[1740374313556,0.156736,95703.0,95700.0,0.02052885]
[1740374313863,0.156734,95704.0,95700.0,0.02152885]
[1740374314267,0.156736,95703.0,95700.0,0.02152885]
[1740374314593,0.156736,95703.0,95700.0,0.02052885]
[1740374315148,0.156736,95703.0,95701.0,0.00309736]
[1740374315363,0.208976,95705.0,95701.0,0.02262621]
[1740374315541,0.156735,95703.0,95701.0,0.02262621]
[1740374315952,0.01066515,95706.0,95701.0,0.02262621]
[1740374316182,0.156736,95703.0,95701.0,0.02262621]
[1740374316409,0.156736,95703.0,95702.0,0.01952885]
[1740374316833,0.156736,95703.0,95702.0,0.02262536]
[1740374317761,0.156736,95703.0,95702.0,0.01952885]
[1740374318868,0.156736,95703.0,95702.0,0.02052885]
[1740374319099,0.156736,95703.0,95702.0,0.001]
[1740374328710,0.306736,95703.0,95702.0,0.001]
[1740374328929,0.156739,95700.0,95699.0,0.0016992]
[1740374330322,0.156739,95700.0,95699.0,0.0026992]
[1740374332038,0.156739,95700.0,95699.0,0.0036992]
[1740374332448,0.156639,95700.0,95699.0,0.0036992]
[1740374338676,0.156639,95700.0,95699.0,0.0026992]
[1740374342019,0.09447869,95701.0,95699.0,0.0026992]
[1740374342245,0.156739,95700.0,95699.0,0.0026992]
[1740374343065,0.156739,95700.0,95699.0,0.0016992]
[1740374345901,0.156739,95700.0,95699.0,0.0026992]
[1740374348504,0.58757028,95700.0,95699.0,0.0026992]
[1740374348743,0.156774,95679.0,95678.0,0.0806]
[1740374349214,0.156774,95679.0,95678.0,0.08371837]
[1740374349428,0.156774,95679.0,95678.0,0.0806]
[1740374350598,0.156774,95679.0,95678.0,0.0816]
[1740374351983,0.156774,95679.0,95678.0,0.0826]
[1740374353099,0.156774,95679.0,95678.0,0.002]
[1740374353793,0.306774,95679.0,95678.0,0.002]
[1740374354744,0.306774,95679.0,95678.0,0.001]
[1740374354953,0.306774,95679.0,95670.0,0.077]
[1740374354954,0.156787,95671.0,95670.0,0.077]
[1740374356540,0.156787,95671.0,95670.0,0.079]
[1740374361476,0.306787,95671.0,95670.0,0.002]
[1740374370752,0.306787,95671.0,95670.0,0.0036998]
[1740374384982,0.306808,95658.0,95657.0,0.04854598]
[1740374385401,0.306808,95658.0,95657.0,0.0454]
[1740374386044,0.306808,95658.0,95657.0,0.0464]
[1740374386646,0.306808,95658.0,95657.0,0.0474]
[1740374387231,0.31965416,95658.0,95657.0,0.0474]
[1740374387616,0.31965416,95658.0,95657.0,0.0464]
[1740374387773,0.32065416,95658.0,95657.0,0.0464]
[1740374389156,0.32065416,95658.0,95657.0,0.1235]
[1740374389360,0.32165416,95658.0,95657.0,0.1235]
[1740374395515,0.32165416,95658.0,95657.0,0.1251998]
[1740374404871,0.31717772,95658.0,95657.0,0.1251998]
[1740374412451,0.01484616,95658.0,95657.0,0.1251998]
[1740374413067,0.01484616,95658.0,95657.0,0.23099308]
[1740374413278,0.01384616,95658.0,95657.0,0.38780308]
[1740374413437,0.01384616,95658.0,95657.0,0.23099308]
[1740374414418,0.001,95658.0,95657.0,0.23099308]
[1740374414618,0.15,95669.0,95660.0,0.0793]
[1740374414824,0.1568,95663.0,95661.0,0.0496]
[1740374415020,0.16943839,95663.0,95662.0,0.1289]
[1740374415637,0.16943839,95663.0,95662.0,0.13204336]
[1740374416165,0.16943839,95663.0,95662.0,0.13504336]
[1740374417683,0.16943839,95663.0,95662.0,0.13704336]
[1740374418379,0.16943839,95663.0,95662.0,0.13404336]
[1740374418582,0.16943839,95663.0,95662.0,0.13204336]
[1740374418795,0.16943839,95663.0,95662.0,0.13704336]
[1740374419121,0.16943839,95663.0,95662.0,0.13204336]
[1740374419617,0.17028839,95663.0,95662.0,0.13604336]
[1740374420993,0.01348839,95663.0,95662.0,0.13604336]
[1740374421200,0.17028839,95663.0,95662.0,0.13604336]
[1740374427807,0.32028839,95663.0,95662.0,0.00714336]
[1740374428237,0.306806,95659.0,95658.0,0.0017]
[1740374428443,0.51889,95659.0,95658.0,0.0017]
[1740374429030,0.62153569,95659.0,95658.0,0.0017]
[1740374429622,0.51889,95659.0,95658.0,0.0017]
[1740374430026,0.62153569,95659.0,95658.0,0.0017]
[1740374430454,0.306811,95656.0,95655.0,7.2e-07]
[1740374430663,0.52393538,95656.0,95655.0,7.2e-07]
[1740374430934,0.62658107,95656.0,95655.0,7.2e-07]
[1740374431145,0.66112192,95656.0,95655.0,7.2e-07]
[1740374431709,0.66312192,95656.0,95655.0,0.00100072]
[1740374432526,1.53098592,95656.0,95655.0,0.00100072]
[1740374432708,1.37961092,95656.0,95655.0,0.00100072]
[1740374432906,1.25419792,95656.0,95655.0,0.00100072]
[1740374433311,0.51769858,95656.0,95655.0,0.00200072]
[1740374433518,0.65779158,95656.0,95655.0,0.00200072]
[1740374434410,0.69233243,95656.0,95655.0,7.2e-07]
[1740374434619,0.65907612,95656.0,95655.0,7.2e-07]
[1740374434831,0.67907612,95656.0,95655.0,7.2e-07]
[1740374436264,0.65907612,95656.0,95655.0,7.2e-07]
[1740374438154,0.65488512,95656.0,95655.0,7.2e-07]
[1740374439162,0.62034427,95656.0,95655.0,7.2e-07]
[1740374439579,0.51769858,95656.0,95655.0,7.2e-07]
[1740374440349,0.306823,95649.0,95648.0,0.0016996]
[1740374440549,0.40130169,95649.0,95648.0,0.0016996]
[1740374441964,0.40430169,95649.0,95648.0,0.0016996]
[1740374443114,0.40930169,95649.0,95648.0,0.0016996]
[1740374445971,0.25930169,95649.0,95648.0,0.0016996]
[1740374446927,0.40430169,95649.0,95648.0,0.0016996]
[1740374447344,0.40130169,95649.0,95648.0,0.0016996]
[1740374447563,0.40230169,95649.0,95648.0,0.0016996]
[1740374448002,0.40330169,95649.0,95648.0,0.0016996]
[1740374448836,0.15,95648.0,95646.0,6e-07]
[1740374449044,0.40947169,95647.0,95646.0,6e-07]
[1740374449459,0.306826,95647.0,95646.0,6e-07]
[1740374449669,0.40130469,95647.0,95646.0,6e-07]
[1740374450501,0.40430469,95647.0,95646.0,6e-07]
[1740374451657,0.40930469,95647.0,95646.0,6e-07]
[1740374457205,0.10247869,95647.0,95646.0,6e-07]
[1740374457634,0.25930469,95647.0,95646.0,6e-07]
[1740374460154,0.40930469,95647.0,95646.0,4.3e-07]
[1740374465558,0.51195038,95647.0,95646.0,4.3e-07]
[1740374465766,0.306831,95644.0,95643.0,3e-08]
[1740374467035,0.313831,95644.0,95643.0,3e-08]
[1740374467316,0.313831,95644.0,95643.0,0.12930003]
[1740374468141,0.163831,95644.0,95643.0,0.12930003]
[1740374468289,0.160831,95644.0,95643.0,0.12930003]
[1740374468706,0.163831,95644.0,95643.0,0.12930003]
[1740374469484,0.159831,95644.0,95643.0,0.12930003]
[1740374469852,0.163831,95644.0,95643.0,0.12930003]
[1740374470075,0.160831,95644.0,95643.0,0.12930003]
[1740374470279,0.157831,95644.0,95643.0,0.12930003]
[1740374470867,0.156831,95644.0,95643.0,0.12930003]
[1740374471096,0.09532879,95647.0,95644.0,0.1231]
[1740374471369,0.09532879,95647.0,95645.0,0.18661359]
[1740374471370,0.0008501,95647.0,95645.0,0.18661359]
[1740374471613,0.0008501,95647.0,95646.0,0.1253]
[1740374471843,0.0008501,95647.0,95646.0,0.22794569]
[1740374472101,0.0008501,95647.0,95646.0,0.23161296]
[1740374472854,0.1276741,95649.0,95646.0,0.23161296]
[1740374473084,0.1276741,95649.0,95648.0,0.081]
[1740374473325,0.209089,95653.0,95648.0,0.081]
[1740374473497,0.00085,95655.0,95649.0,0.0481]
[1740374473718,0.156819,95652.0,95651.0,0.0481]
[1740374474093,0.156819,95652.0,95651.0,0.13276417]
[1740374474501,0.00085,95655.0,95651.0,0.05176417]
[1740374474706,0.156815,95654.0,95652.0,0.081]
[1740374474906,0.156815,95654.0,95653.0,0.0481]
[1740374475111,0.156815,95654.0,95653.0,0.13276293]
[1740374475428,0.00085,95655.0,95654.0,0.1291]
[1740374475646,0.00085,95655.0,95654.0,0.13276231]
[1740374476687,0.157663,95655.0,95654.0,0.13276231]
[1740374476894,0.157663,95655.0,95654.0,0.13376231]
[1740374477099,0.157663,95655.0,95654.0,0.13476231]
[1740374478351,0.147663,95655.0,95654.0,0.13476231]
[1740374479176,0.1485131,95655.0,95654.0,0.13476231]
[1740374480679,0.1485131,95655.0,95654.0,0.13276231]
[1740374482964,0.1485131,95655.0,95654.0,0.1291]
[1740374495168,0.156821,95650.0,95649.0,0.0017002]
[1740374495621,0.306821,95650.0,95649.0,0.00530551]
[1740374495792,0.306821,95650.0,95649.0,0.0017002]
[1740374497074,0.309821,95650.0,95649.0,0.0017002]
[1740374497716,0.312821,95650.0,95649.0,0.0027002]
[1740374497924,0.309821,95650.0,95649.0,0.0017002]
[1740374498246,0.314821,95650.0,95649.0,0.0017002]
[1740374498449,0.314821,95650.0,95646.0,0.0017002]
[1740374498450,0.306826,95647.0,95646.0,4e-07]
[1740374498655,0.40947169,95647.0,95646.0,4e-07]
[1740374499500,0.156843,95637.0,95631.0,0.0451]
[1740374500815,0.158843,95637.0,95631.0,0.0451]
[1740374501781,0.160843,95637.0,95631.0,0.0451]
[1740374504566,0.35796738,95637.0,95631.0,0.0451]